bitfinex/quotes_BTCUSD_20211001
["timestamp","ask_amount","ask_price","bid_price","bid_amount"]
[1633110237451,0.663369,47526.0,47525.0,0.00432338]
[1633110238460,0.315735,47526.0,47525.0,0.00432338]
[1633110238657,0.315735,47526.0,47519.0,0.24946209]
[1633110238859,0.10756211,47526.0,47519.0,0.24946209]
[1633110239059,0.00013227,47520.0,47518.0,0.31476894]
[1633110239456,0.00012025,47519.0,47518.0,0.31476894]
[1633110240134,0.00012025,47519.0,47518.0,0.31909295]
[1633110241124,0.00712025,47519.0,47518.0,0.35609295]
[1633110242521,0.00712025,47519.0,47518.0,0.31909295]
[1633110242522,0.00012025,47519.0,47518.0,0.31909295]
[1633110243147,0.00612025,47519.0,47518.0,0.03932401]
[1633110243332,0.02600887,47519.0,47518.0,0.03932401]
[1633110243529,0.24314387,47519.0,47518.0,0.03932401]
[1633110244129,0.24314387,47519.0,47518.0,0.035]
[1633110244333,0.0349626,47519.0,47518.0,0.035]
[1633110244531,0.03367398,47519.0,47518.0,0.035]
[1633110244730,0.56048198,47519.0,47517.0,0.34132618]
[1633110245129,0.00010823,47518.0,47517.0,0.34132618]
[1633110245530,0.00010823,47518.0,47517.0,0.34669509]
[1633110245732,0.00010823,47518.0,47517.0,0.34793286]
[1633110245931,0.00010823,47518.0,47517.0,0.83117839]
[1633110246435,0.00010823,47518.0,47517.0,0.91989852]
[1633110247230,0.00010823,47518.0,47517.0,0.95789852]
[1633110248230,0.00010823,47518.0,47517.0,0.86917839]
[1633110248633,0.00010823,47518.0,47517.0,0.60797839]
[1633110248830,0.00010823,47518.0,47517.0,0.39084339]
[1633110249230,0.00010823,47518.0,47517.0,0.09551721]
[1633110249630,0.00010823,47518.0,47517.0,0.0901483]
[1633110249830,0.00010823,47518.0,47517.0,0.3133483]
[1633110250032,0.00010823,47518.0,47517.0,0.5304833]
[1633110250829,0.00010823,47518.0,47517.0,0.75862884]
[1633110251031,0.00010823,47518.0,47517.0,0.7639985]
[1633110251231,0.00010823,47518.0,47517.0,0.8029985]
[1633110251633,0.00010823,47518.0,47517.0,0.7639985]
[1633110253131,0.00010823,47518.0,47517.0,0.8039985]
[1633110254333,0.00010823,47518.0,47517.0,0.5807985]
[1633110254534,0.00010823,47518.0,47517.0,0.26665296]
[1633110254733,0.00010823,47518.0,47517.0,0.04951796]
[1633110255146,0.00010823,47518.0,47517.0,0.0911483]
[1633110255534,0.00010823,47518.0,47517.0,0.3950237]
[1633110255734,0.00010823,47518.0,47517.0,0.40543964]
[1633110255932,0.00010823,47518.0,47517.0,0.35211317]
[1633110256133,0.00010823,47518.0,47517.0,0.44543529]
[1633110256534,0.00010823,47518.0,47517.0,0.40380495]
[1633110257134,0.00010823,47518.0,47517.0,0.66393995]
[1633110257335,0.00010823,47518.0,47517.0,0.44680495]
[1633110258536,0.00010823,47518.0,47517.0,0.40380495]
[1633110258839,0.00010823,47518.0,47517.0,0.62093995]
[1633110259241,0.00010823,47518.0,47517.0,0.66293995]
[1633110259838,0.00010823,47518.0,47517.0,0.71587378]
[1633110260439,0.005,47520.0,47518.0,1.85]
[1633110260638,0.005,47520.0,47519.0,0.20985615]
[1633110261040,0.005,47520.0,47519.0,0.44431165]
[1633110261239,0.005,47520.0,47519.0,0.48131165]
[1633110261639,0.005,47520.0,47519.0,0.24685615]
[1633110261843,0.005,47520.0,47519.0,0.53080905]
[1633110262439,0.005,47520.0,47519.0,0.53208171]
[1633110263240,0.005,47520.0,47519.0,0.56908171]
[1633110263852,0.005,47520.0,47519.0,0.80201226]
[1633110264042,0.005,47520.0,47519.0,1.02521226]
[1633110264245,0.005,47520.0,47519.0,1.04381226]
[1633110264445,0.005,47520.0,47519.0,1.00681226]
[1633110264839,0.005,47520.0,47519.0,1.11681226]
[1633110265241,0.005,47520.0,47519.0,0.92861226]
[1633110265443,0.005,47520.0,47519.0,1.04181226]
[1633110265840,0.005,47520.0,47519.0,1.16243795]
[1633110266241,0.01217302,47520.0,47519.0,1.15707205]
[1633110266639,0.01217302,47520.0,47519.0,1.00144636]
[1633110266842,0.01217302,47520.0,47519.0,1.11144636]
[1633110267241,0.005,47520.0,47519.0,1.15281226]
[1633110268541,0.005,47520.0,47519.0,1.11681226]
[1633110268743,0.005,47520.0,47519.0,0.88388171]
[1633110268940,0.005,47520.0,47519.0,1.00439615]
[1633110269141,0.005,47520.0,47519.0,1.04338531]
[1633110269344,0.005,47520.0,47519.0,1.04337685]
[1633110269546,0.008,47520.0,47519.0,1.27721419]
[1633110269941,0.008,47520.0,47519.0,1.15671905]
[1633110270746,0.008,47520.0,47519.0,1.11771905]
[1633110271343,0.008,47520.0,47519.0,1.15571905]
[1633110271645,0.01517304,47520.0,47519.0,1.27076663]
[1633110271844,0.01517304,47520.0,47519.0,1.15035315]
[1633110272644,0.008,47520.0,47519.0,1.15035315]
[1633110272845,0.008,47520.0,47519.0,1.15571905]
[1633110274247,0.008,47520.0,47519.0,1.27617723]
[1633110274450,0.008,47520.0,47519.0,1.11771905]
[1633110274652,0.008,47520.0,47519.0,1.23823313]
[1633110275048,0.08,47526.0,47520.0,1.72794463]
[1633110275250,0.08,47526.0,47525.0,0.00121265]
[1633110275455,0.08,47526.0,47525.0,0.15814565]
[1633110275652,0.08,47526.0,47525.0,0.40748155]
[1633110275653,0.08009619,47526.0,47525.0,0.40748155]
[1633110275855,0.08009619,47526.0,47525.0,0.70499056]
[1633110276057,0.00315247,47549.0,47544.0,0.35225959]
[1633110276058,0.00186177,47549.0,47544.0,0.35225959]
[1633110276454,0.00022835,47545.0,47544.0,0.35225959]
[1633110277056,0.00022835,47545.0,47544.0,0.88481559]
[1633110277256,0.00743234,47545.0,47544.0,1.31129203]
[1633110278252,0.00022835,47545.0,47544.0,1.13770101]
[1633110278452,0.00022835,47545.0,47544.0,1.11470101]
[1633110279254,0.00022835,47545.0,47544.0,1.14570101]
[1633110281054,0.00022835,47545.0,47544.0,1.11470101]
[1633110281257,0.00022835,47545.0,47544.0,1.14470101]
[1633110282658,0.00022835,47545.0,47544.0,1.13937262]
[1633110282856,0.00743236,47545.0,47544.0,1.13937262]
[1633110283258,0.00869797,47553.0,47552.0,0.32331764]
[1633110283461,0.0056,47554.0,47552.0,0.58009817]
[1633110283658,0.0056,47554.0,47553.0,0.24652345]
[1633110283859,0.0056,47554.0,47552.0,0.33223604]
[1633110284059,0.00570815,47554.0,47552.0,0.33223604]
[1633110284459,0.07897677,47554.0,47552.0,0.33223604]
[1633110287322,0.00570815,47554.0,47552.0,0.33223604]
[1633110288138,0.00570815,47554.0,47552.0,0.32331764]
[1633110288324,0.00361253,47553.0,47552.0,0.32331764]
[1633110288923,0.00361253,47553.0,47552.0,0.56764106]
[1633110289124,0.00570815,47554.0,47552.0,0.56764106]
[1633110289323,0.00570815,47554.0,47553.0,0.25802587]
[1633110290331,0.00570815,47554.0,47552.0,0.53465662]
[1633110290724,9.613e-05,47553.0,47552.0,0.53465662]
[1633110292729,9.613e-05,47553.0,47552.0,0.33223604]
[1633110293729,0.00370807,47553.0,47552.0,0.32331764]
[1633110294730,9.613e-05,47553.0,47552.0,0.33223604]
[1633110297732,9.613e-05,47553.0,47552.0,0.57939952]
[1633110297931,9.613e-05,47553.0,47552.0,0.33223604]
[1633110299131,9.613e-05,47553.0,47552.0,0.32331764]
[1633110299332,9.613e-05,47553.0,47552.0,0.57131958]
[1633110299532,0.00370809,47553.0,47552.0,0.32331764]
[1633110300143,9.613e-05,47553.0,47552.0,0.32331764]
[1633110300336,9.613e-05,47553.0,47552.0,0.79697637]
[1633110301332,9.613e-05,47553.0,47552.0,0.83197637]
[1633110302735,9.613e-05,47553.0,47552.0,0.79697637]
[1633110303340,9.613e-05,47553.0,47552.0,0.83197637]
[1633110304739,9.613e-05,47553.0,47552.0,0.79697637]
[1633110304937,9.613e-05,47553.0,47552.0,0.78805797]
[1633110305136,0.00370812,47553.0,47552.0,0.78805797]
[1633110305337,0.00370812,47553.0,47552.0,0.82305797]
[1633110305537,0.00370812,47553.0,47552.0,0.57545264]
[1633110305738,0.00370812,47553.0,47552.0,0.5865315]
[1633110305739,9.613e-05,47553.0,47552.0,0.5865315]
[1633110306540,9.613e-05,47553.0,47552.0,0.8097315]
[1633110306940,9.613e-05,47553.0,47552.0,0.5865315]
[1633110308741,9.613e-05,47553.0,47552.0,0.7747315]
[1633110309149,0.00365763,47553.0,47552.0,1.00248442]
[1633110309344,0.00365763,47553.0,47552.0,1.03748442]
[1633110310144,0.00365763,47553.0,47552.0,0.79927003]
[1633110310746,0.00365763,47553.0,47552.0,0.76427003]
[1633110311149,9.613e-05,47553.0,47552.0,0.76427003]
[1633110311345,9.613e-05,47553.0,47552.0,0.81034889]
[1633110311746,9.613e-05,47553.0,47552.0,1.05340536]
[1633110313146,9.613e-05,47553.0,47552.0,1.05465497]
[1633110313345,9.613e-05,47553.0,47552.0,1.05665497]
[1633110314346,9.613e-05,47553.0,47552.0,1.47711697]
[1633110314744,0.00365763,47553.0,47552.0,1.46603811]
[1633110314944,0.00365763,47553.0,47552.0,1.42903811]
[1633110315345,0.00365763,47553.0,47552.0,1.46703811]
[1633110316744,9.613e-05,47553.0,47552.0,1.44011697]
[1633110316946,9.613e-05,47553.0,47552.0,1.21691697]
[1633110317345,9.613e-05,47553.0,47552.0,1.25491697]
[1633110318547,9.613e-05,47553.0,47552.0,1.64047787]
[1633110318745,9.613e-05,47553.0,47552.0,1.60247787]
[1633110319346,9.613e-05,47553.0,47552.0,1.64047787]
[1633110320148,9.613e-05,47553.0,47552.0,1.62939901]
[1633110320347,0.00365763,47553.0,47552.0,1.62939901]
[1633110320747,0.00365763,47553.0,47552.0,1.59139901]
[1633110321348,0.00365763,47553.0,47552.0,1.62939901]
[1633110321553,0.00365763,47553.0,47552.0,1.85259901]
[1633110321751,0.0036,47557.0,47556.0,2.451]
[1633110321949,0.0016,47557.0,47556.0,0.40600849]
[1633110322152,0.0016,47557.0,47556.0,1.36302846]
[1633110322350,0.0006,47568.0,47556.0,1.25289406]
[1633110322548,0.0006,47568.0,47558.0,0.15788553]
[1633110322748,0.0006,47568.0,47558.0,0.23256826]
[1633110322948,0.0002721,47559.0,47558.0,0.61812916]
[1633110323351,0.0002721,47559.0,47558.0,0.60404643]
[1633110323549,0.0002721,47559.0,47558.0,0.70404643]
[1633110323748,7.21e-05,47559.0,47558.0,0.70404643]
[1633110323950,7.21e-05,47559.0,47558.0,0.98396809]
[1633110324349,7.21e-05,47559.0,47558.0,0.98396785]
[1633110324752,7.21e-05,47559.0,47558.0,0.92724643]
[1633110324950,7.21e-05,47559.0,47558.0,0.88524643]
[1633110325152,7.21e-05,47559.0,47558.0,0.8860439]
[1633110325352,7.21e-05,47559.0,47558.0,0.9290439]
[1633110325954,7.21e-05,47559.0,47558.0,0.7058439]
[1633110326554,7.21e-05,47559.0,47558.0,0.6058439]
[1633110326756,7.21e-05,47559.0,47558.0,0.7860439]
[1633110327352,7.21e-05,47559.0,47558.0,0.8270439]
[1633110327557,7.21e-05,47559.0,47558.0,0.82766129]
[1633110328753,7.21e-05,47559.0,47558.0,0.79951163]
[1633110329556,7.21e-05,47559.0,47558.0,0.61931163]
[1633110329757,7.21e-05,47559.0,47558.0,0.2139002]
[1633110329758,0.00131671,47559.0,47558.0,0.2139002]
[1633110329954,0.00131671,47559.0,47558.0,0.0572652]
[1633110330560,0.08803789,47559.0,47558.0,0.04441486]
[1633110330757,0.08803789,47559.0,47558.0,0.00141486]
[1633110331357,0.30517289,47559.0,47558.0,0.03041486]
[1633110331758,0.30570276,47559.0,47558.0,0.03041486]
[1633110331963,0.30517289,47559.0,47558.0,0.03041486]
[1633110332758,0.30517289,47559.0,47558.0,0.00141486]
[1633110333031,0.30517289,47559.0,47558.0,0.00102538]
[1633110333361,0.33117289,47559.0,47558.0,0.02502538]
[1633110334360,0.33117289,47559.0,47558.0,0.03787572]
[1633110334760,0.30517289,47559.0,47558.0,0.01387572]
[1633110335361,0.33617289,47559.0,47558.0,0.03187572]
[1633110336563,0.33617289,47559.0,47558.0,0.01902538]
[1633110336764,0.30517289,47559.0,47558.0,0.00102538]
[1633110337364,0.12003789,47559.0,47558.0,0.00102538]
[1633110337563,0.25045171,47559.0,47558.0,0.00102538]
[1633110337963,0.25045171,47559.0,47558.0,0.12482204]
[1633110337964,0.16920347,47559.0,47558.0,0.12482204]
[1633110338165,0.0006,47560.0,47558.0,0.25791971]
[1633110338562,0.0006,47560.0,47559.0,0.08362353]
[1633110338763,0.0006,47560.0,47559.0,0.32979742]
[1633110339363,0.0006,47560.0,47559.0,0.36879742]
[1633110339765,0.0006,47560.0,47559.0,0.29802346]
[1633110340764,0.0006,47560.0,47559.0,0.25902346]
[1633110341565,0.0006,47560.0,47559.0,0.58568407]
[1633110341766,0.0006,47560.0,47559.0,0.05246696]
[1633110342029,0.0006,47560.0,47559.0,0.03961739]
[1633110342767,0.0006,47560.0,47559.0,0.00061739]
[1633110343569,0.0006,47560.0,47559.0,0.03961739]
[1633110344767,0.0006,47560.0,47559.0,0.00061739]
[1633110345037,0.0006,47560.0,47559.0,0.01346696]
[1633110345172,0.31004762,47568.0,47559.0,0.01387495]
[1633110345369,0.09599368,47567.0,47559.0,0.25089531]
[1633110345572,0.09599368,47567.0,47559.0,0.29027792]
[1633110345769,0.09599368,47567.0,47563.0,0.00061739]
[1633110345969,0.217037,47566.0,47563.0,0.00061739]
[1633110346178,6.006e-05,47564.0,47563.0,0.00061739]
[1633110346370,0.21709706,47564.0,47563.0,0.00061739]
[1633110347571,0.21709706,47564.0,47563.0,0.01761739]
[1633110348769,0.21709706,47564.0,47563.0,0.00061739]
[1633110349572,0.21709706,47564.0,47563.0,0.01561739]
[1633110350571,0.21709706,47564.0,47563.0,0.02846001]
[1633110350773,0.21709706,47564.0,47563.0,0.01346001]
[1633110352973,0.21709706,47564.0,47563.0,0.00061739]
[1633110354582,0.006489,47559.0,47552.0,0.1]
[1633110354777,0.235637,47558.0,47552.0,0.1]
[1633110354979,0.26257725,47557.0,47552.0,0.1]
[1633110355180,0.006489,47559.0,47557.0,6.007e-05]
[1633110355382,0.235642,47558.0,47557.0,6.007e-05]
[1633110355578,0.65486034,47558.0,47557.0,6.007e-05]
[1633110355778,1.07545634,47558.0,47557.0,6.007e-05]
[1633110355975,1.07545634,47558.0,47557.0,0.01291196]
[1633110356778,0.65486034,47558.0,47557.0,0.01291196]
[1633110357579,0.65486034,47558.0,47557.0,0.01791196]
[1633110358179,0.65539021,47558.0,47557.0,0.01791196]
[1633110358579,0.65486034,47558.0,47557.0,0.00506007]
[1633110358782,0.65486034,47558.0,47557.0,6.007e-05]
[1633110359380,0.65539021,47558.0,47557.0,6.007e-05]
[1633110359581,0.65486034,47558.0,47557.0,6.007e-05]
[1633110361582,0.65486034,47558.0,47557.0,0.01291196]
[1633110362585,0.65661085,47558.0,47557.0,0.01291196]
[1633110363585,0.266642,47558.0,47557.0,0.02491196]
[1633110363984,0.266642,47558.0,47557.0,0.01206007]
[1633110364786,0.235642,47558.0,47557.0,6.007e-05]
[1633110366985,0.235642,47558.0,47557.0,0.01507219]
[1633110367785,0.185642,47558.0,47557.0,0.01507219]
[1633110368185,0.180642,47558.0,47557.0,0.01507219]
[1633110369586,0.180642,47558.0,47557.0,6.007e-05]
[1633110372589,0.180642,47558.0,47557.0,0.01507219]
[1633110372988,0.180642,47558.0,47557.0,0.01356498]
[1633110375051,0.180642,47558.0,47552.0,0.1]
[1633110375393,0.315433,47555.0,47552.0,0.1]
[1633110375593,0.217042,47554.0,47552.0,0.1]
[1633110376789,0.315494,47553.0,47552.0,0.1]
[1633110376989,0.532541,47553.0,47552.0,0.1]
[1633110377188,0.532541,47553.0,47552.0,0.10006009]
[1633110377592,0.562541,47553.0,47552.0,0.11306009]
[1633110378055,0.562541,47553.0,47552.0,0.12735659]
[1633110378193,0.80497577,47553.0,47552.0,0.12735659]
[1633110379490,0.77497577,47553.0,47552.0,0.11435659]
[1633110379692,0.80497577,47553.0,47552.0,0.12735659]
[1633110380497,0.80497577,47553.0,47552.0,0.11306009]
[1633110381497,0.562541,47553.0,47552.0,0.10006009]
[1633110381695,0.532541,47553.0,47552.0,0.11506009]
[1633110382695,0.77050469,47553.0,47552.0,0.11506009]
[1633110383297,0.77050469,47553.0,47552.0,0.10006009]
[1633110383498,0.77050469,47553.0,47552.0,0.11435659]
[1633110383695,0.77050469,47553.0,47552.0,0.12935659]
[1633110384959,0.77050469,47553.0,47552.0,0.11435659]
[1633110385761,0.77050469,47553.0,47552.0,0.12935659]
[1633110385964,0.77050469,47553.0,47552.0,0.11506009]
[1633110386962,0.532541,47553.0,47552.0,0.11506009]
[1633110387563,0.532541,47553.0,47552.0,0.10006009]
[1633110387761,0.532541,47553.0,47552.0,0.11506009]
[1633110388162,0.532541,47553.0,47552.0,0.3061003]
[1633110388563,0.217047,47553.0,47552.0,0.3061003]
[1633110388761,0.420636,47556.0,47552.0,0.3061003]
[1633110388962,0.420636,47556.0,47552.0,0.2911003]
[1633110389166,0.420636,47556.0,47552.0,0.3053968]
[1633110389365,8.204e-05,47555.0,47552.0,0.3053968]
[1633110389765,0.31551904,47555.0,47552.0,0.3263968]
[1633110390367,0.31551904,47555.0,47552.0,0.13535659]
[1633110390567,0.217047,47554.0,47552.0,0.13535659]
[1633110390965,0.217047,47554.0,47552.0,0.11435659]
[1633110391566,0.217047,47554.0,47552.0,0.10006009]
[1633110391769,0.315471,47553.0,47552.0,0.11606009]
[1633110391966,0.532518,47553.0,47552.0,0.11606009]
[1633110392871,0.532518,47553.0,47552.0,0.10006009]
[1633110393671,0.532518,47553.0,47552.0,0.11906009]
[1633110394470,0.532518,47553.0,47552.0,0.13335659]
[1633110395069,0.532518,47553.0,47552.0,0.11435659]
[1633110395271,0.530218,47553.0,47552.0,0.11435659]
[1633110395473,0.530218,47553.0,47552.0,0.11702159]
[1633110395671,0.530218,47553.0,47552.0,0.13502159]
[1633110396971,0.530218,47553.0,47552.0,0.10272509]
[1633110397878,1.7452663,47553.0,47552.0,0.11972509]
[1633110398076,0.79579617,47553.0,47552.0,0.11972509]
[1633110398673,1.88346234,47553.0,47552.0,0.11972509]
[1633110398877,1.69579617,47553.0,47552.0,0.11972509]
[1633110399106,1.69579617,47553.0,47552.0,0.10272509]
[1633110399107,0.79579617,47553.0,47552.0,0.10272509]
[1633110399705,0.82779617,47553.0,47552.0,0.10272509]
[1633110399905,0.82787689,47553.0,47552.0,0.10272509]
[1633110400106,0.58142859,47553.0,47552.0,0.11702159]
[1633110401206,0.54942859,47553.0,47552.0,0.11702159]
[1633110401610,0.78999536,47553.0,47552.0,0.11702159]
[1633110401812,0.82099536,47553.0,47552.0,0.11702159]
[1633110402565,0.82099536,47553.0,47552.0,0.10272509]
[1633110402964,0.58042859,47553.0,47552.0,0.10272509]
[1633110403166,0.54942859,47553.0,47552.0,0.10272509]
[1633110403767,0.58042859,47553.0,47552.0,0.10272509]
[1633110405380,0.57989872,47553.0,47552.0,0.10272509]
[1633110405582,0.78992707,47553.0,47552.0,0.11702159]
[1633110405779,0.82145694,47553.0,47552.0,0.11702159]
[1633110405980,0.58042859,47553.0,47552.0,0.11702159]
[1633110406986,0.54942859,47553.0,47552.0,0.11702159]
[1633110407791,0.58042859,47553.0,47552.0,0.11702159]
[1633110407986,0.58042859,47553.0,47552.0,0.10272509]
[1633110409187,0.54942859,47553.0,47552.0,0.10272509]
[1633110409386,0.54889872,47553.0,47552.0,0.10272509]
[1633110409789,0.57989872,47553.0,47552.0,0.10272509]
[1633110410985,0.54889872,47553.0,47552.0,0.11702159]
[1633110411786,0.57989872,47553.0,47552.0,0.11702159]
[1633110412989,0.57989872,47553.0,47552.0,0.10531944]
[1633110413190,0.54889872,47553.0,47552.0,0.10531944]
[1633110413588,0.54889872,47553.0,47552.0,0.09102294]
[1633110413789,0.57989872,47553.0,47552.0,0.09102294]
[1633110415191,0.54889872,47553.0,47552.0,0.09102294]
[1633110415793,0.58089872,47553.0,47552.0,0.09102294]
[1633110416592,0.58089872,47553.0,47552.0,0.10531944]
[1633110416791,0.58142859,47553.0,47552.0,0.10531944]
[1633110417192,0.54889872,47553.0,47552.0,0.10531944]
[1633110417795,0.58089872,47553.0,47552.0,0.10531944]
[1633110417994,0.57642859,47553.0,47552.0,0.10531944]
[1633110418994,0.57642859,47553.0,47552.0,0.09102294]
[1633110418995,0.54442859,47553.0,47552.0,0.09102294]
[1633110419196,0.54389872,47553.0,47552.0,0.09102294]
[1633110419796,0.57642859,47553.0,47552.0,0.09102294]
[1633110421600,0.57589872,47553.0,47552.0,0.09102294]
[1633110421997,0.57589872,47553.0,47552.0,0.10531944]
[1633110422999,0.54389872,47553.0,47552.0,0.10531944]
[1633110423799,0.57689872,47553.0,47552.0,0.10531944]
[1633110424400,0.57689872,47553.0,47552.0,0.09102294]
[1633110424802,0.57689872,47553.0,47552.0,0.31422294]
[1633110425003,0.57689872,47553.0,47552.0,0.31545847]
[1633110425004,0.25012772,47553.0,47552.0,0.31545847]
[1633110425207,8.072e-05,47553.0,47552.0,0.31545847]
[1633110425802,0.03408072,47553.0,47552.0,0.31545847]
[1633110426065,0.03408072,47553.0,47552.0,0.35395847]
[1633110426999,8.072e-05,47553.0,47552.0,0.35395847]
[1633110427402,8.072e-05,47553.0,47552.0,0.59566075]
[1633110427608,1.318018,47569.0,47563.0,0.00121727]
[1633110427609,0.526418,47569.0,47563.0,0.00121727]
[1633110427806,0.0006,47569.0,47564.0,0.00128547]
[1633110428002,0.0006,47569.0,47568.0,0.00123655]
[1633110429203,1.0536,47583.0,47568.0,0.22443655]
[1633110429400,1.0536,47583.0,47568.0,0.00123655]
[1633110429401,1.303794,47582.0,47568.0,0.00123655]
[1633110429600,0.00112987,47579.0,47568.0,0.00123655]
[1633110429803,0.02396139,47574.0,47568.0,0.01223655]
[1633110430000,0.02396139,47574.0,47569.0,0.00356009]
[1633110430203,0.217047,47573.0,47569.0,0.00356009]
[1633110430404,0.217047,47573.0,47571.0,0.2232]
[1633110430603,0.217047,47573.0,47571.0,2.65720168]
[1633110430803,0.00015615,47572.0,47571.0,2.65720168]
[1633110431605,0.00015615,47572.0,47571.0,2.88040168]
[1633110431807,0.00015615,47572.0,47571.0,0.2232]
[1633110431808,0.03315615,47572.0,47571.0,0.2232]
[1633110433014,0.00015615,47572.0,47571.0,0.2396259]
[1633110433809,0.03415615,47572.0,47571.0,0.0164259]
[1633110434006,0.25120315,47572.0,47571.0,0.0164259]
[1633110434407,0.25120315,47572.0,47571.0,0.24088837]
[1633110434607,0.03415615,47572.0,47571.0,0.24088837]
[1633110435209,0.00015615,47572.0,47571.0,0.24088837]
[1633110435613,0.00015615,47572.0,47571.0,0.22802252]
[1633110435807,0.03615615,47572.0,47571.0,0.22802252]
[1633110437210,0.00015615,47572.0,47571.0,0.22802252]
[1633110437812,0.03515615,47572.0,47571.0,0.31672033]
[1633110438009,0.03515615,47572.0,47571.0,0.22802252]
[1633110438615,0.03515615,47572.0,47571.0,0.24088837]
[1633110439012,0.00015615,47572.0,47571.0,0.01768837]
[1633110439211,0.21720315,47572.0,47571.0,0.01768837]
[1633110439610,0.53253315,47572.0,47571.0,0.01768837]
[1633110439811,0.56553315,47572.0,47571.0,0.01768837]
[1633110440012,0.56553315,47572.0,47571.0,0.01735737]
[1633110440615,0.56553315,47572.0,47571.0,0.01612354]
[1633110441082,0.53253315,47572.0,47571.0,0.00325769]
[1633110441214,0.21720315,47572.0,47571.0,0.00325769]
[1633110441614,0.00015615,47572.0,47571.0,0.00325769]
[1633110441815,0.25320315,47572.0,47571.0,0.00325769]
[1633110442015,0.25320315,47572.0,47571.0,0.00453119]
[1633110442813,0.03615615,47572.0,47571.0,0.00453119]
[1633110443016,0.03615615,47572.0,47571.0,0.22773119]
[1633110443218,0.00015615,47572.0,47571.0,0.51496385]
[1633110443417,0.00015615,47572.0,47571.0,0.73201085]
[1633110443814,0.00015615,47572.0,47571.0,0.77401085]
[1633110444105,0.00015615,47572.0,47571.0,0.78702788]
[1633110445016,0.00015615,47572.0,47571.0,0.74502788]
[1633110445418,0.00076139,47575.0,47573.0,0.7]
[1633110445619,0.00076139,47575.0,47574.0,0.483637]
[1633110445817,0.00076139,47575.0,47574.0,0.859997]
[1633110446620,0.00076139,47575.0,47574.0,0.86355686]
[1633110447818,0.00076139,47575.0,47574.0,0.90755686]
[1633110448217,0.00076139,47575.0,47574.0,0.92615686]
[1633110448418,0.00076139,47575.0,47574.0,1.02615686]
[1633110448819,0.0004,47577.0,47574.0,1.02615686]
[1633110449018,0.0004,47577.0,47576.0,0.21829869]
[1633110449220,0.0002,47578.0,47576.0,0.50517835]
[1633110449423,0.0002,47579.0,47577.0,0.47723515]
[1633110449623,0.0008,47584.0,47578.0,0.67546715]
[1633110449822,0.0008,47584.0,47579.0,0.50423193]
[1633110450224,0.00069608,47580.0,47579.0,0.72743193]
[1633110450425,0.00069608,47580.0,47579.0,0.82743193]
[1633110450623,0.00049608,47580.0,47579.0,0.83471302]
[1633110450822,0.00049608,47580.0,47579.0,0.82346102]
[1633110451025,11.97072072,47588.0,47580.0,2.167047]
[1633110451227,11.97072072,47588.0,47587.0,0.2301205]
[1633110451426,11.97072072,47588.0,47587.0,0.74323271]
[1633110451624,11.97081678,47588.0,47587.0,1.05832471]
[1633110451825,11.97081678,47588.0,47587.0,1.09932471]
[1633110452024,11.97081678,47588.0,47587.0,1.10288356]
[1633110452426,11.97081678,47588.0,47587.0,1.32608356]
[1633110453223,11.97081678,47588.0,47587.0,1.28508356]
[1633110453224,11.96472424,47588.0,47587.0,1.28508356]
[1633110453423,11.96472424,47588.0,47587.0,1.38508356]
[1633110453826,11.96472424,47588.0,47587.0,1.42708356]
[1633110454226,11.96472424,47588.0,47587.0,1.3373523]
[1633110455027,11.96472424,47588.0,47587.0,1.35004203]
[1633110455227,11.96472424,47588.0,47587.0,1.30804203]
[1633110455429,11.95972424,47588.0,47587.0,1.20804203]
[1633110455628,11.95972424,47588.0,47587.0,0.95183108]
[1633110455829,11.95972424,47588.0,47587.0,0.99283108]
[1633110457227,11.95972424,47588.0,47587.0,0.95183108]
[1633110457428,11.95972424,47588.0,47587.0,0.93914135]
[1633110457629,11.45974424,47588.0,47587.0,0.93914135]
[1633110457830,11.45974424,47588.0,47587.0,1.32561447]
[1633110458030,11.45974424,47588.0,47587.0,0.54484935]
[1633110458229,11.45974424,47588.0,47587.0,0.37767935]
[1633110458429,11.45474424,47588.0,47587.0,0.37767935]
[1633110459096,11.45474424,47588.0,47587.0,0.79781635]
[1633110459231,11.45474424,47588.0,47587.0,0.75381635]
[1633110459832,11.45474424,47588.0,47587.0,0.79481635]
[1633110460033,11.45474424,47588.0,47587.0,0.37346524]
[1633110460231,10.95476424,47588.0,47587.0,0.37346524]
[1633110460430,10.95476424,47588.0,47587.0,0.37472503]
[1633110460631,10.95476424,47588.0,47587.0,0.38741476]
[1633110461231,10.95476424,47588.0,47587.0,0.34641476]
[1633110461832,10.95476424,47588.0,47587.0,0.39341476]
[1633110462031,10.95486782,47588.0,47587.0,0.39341476]
[1633110462232,10.95486782,47588.0,47587.0,1.47341476]
[1633110462434,10.95486782,47588.0,47587.0,0.39341476]
[1633110462636,10.95486782,47588.0,47587.0,0.70854476]
[1633110463034,10.95486782,47588.0,47587.0,0.69585503]
[1633110463635,10.95486782,47588.0,47587.0,0.93295559]
[1633110463835,10.95486782,47588.0,47587.0,1.14915559]
[1633110464237,10.95486782,47588.0,47587.0,1.14845559]
[1633110464633,10.95486782,47588.0,47587.0,0.91135503]
[1633110464836,10.95486782,47588.0,47587.0,1.15453349]
[1633110465233,10.95486782,47588.0,47587.0,0.89133349]
[1633110465637,10.95486782,47588.0,47587.0,0.64815503]
[1633110465833,10.95486782,47588.0,47587.0,0.69115503]
[1633110466034,10.95486782,47588.0,47587.0,0.70384476]
[1633110466433,10.95486782,47588.0,47587.0,0.94134965]
[1633110466633,10.95486782,47588.0,47587.0,0.70384476]
[1633110467035,10.95486782,47588.0,47587.0,0.38745497]
[1633110467235,10.95486782,47588.0,47587.0,0.70258497]
[1633110467836,10.95486782,47588.0,47587.0,0.70058497]
[1633110468435,10.95486782,47588.0,47587.0,0.37276524]
[1633110469038,10.97926782,47588.0,47587.0,0.37276524]
[1633110469235,10.97926782,47588.0,47587.0,0.33176524]
[1633110469936,10.97926782,47588.0,47587.0,0.37376524]
[1633110470139,10.97926782,47588.0,47587.0,0.3364141]
[1633110471136,10.97926782,47588.0,47587.0,0.2944141]
[1633110471536,10.97926782,47588.0,47587.0,0.30710383]
[1633110471739,10.97926782,47588.0,47587.0,0.3083998]
[1633110471942,10.97926782,47588.0,47587.0,0.3503998]
[1633110473140,10.97926782,47588.0,47587.0,0.40619204]
[1633110473339,10.97926782,47588.0,47587.0,0.3083998]
[1633110473943,10.97926782,47588.0,47587.0,0.3513998]
[1633110474143,10.97926782,47588.0,47587.0,0.33871007]
[1633110474941,10.77926782,47588.0,47587.0,0.33871007]
[1633110475141,10.77426782,47588.0,47587.0,0.33871007]
[1633110475743,10.77426782,47588.0,47587.0,0.29571007]
[1633110475944,10.77426782,47588.0,47587.0,0.33871007]
[1633110477145,10.77426782,47588.0,47587.0,0.3513998]
[1633110477542,10.77426782,47588.0,47587.0,0.37576716]
[1633110477941,10.77426782,47588.0,47587.0,0.3543998]
[1633110478144,10.77426782,47588.0,47587.0,0.37876737]
[1633110478342,10.77426782,47588.0,47587.0,0.3787666]
[1633110478543,10.3491541,47588.0,47587.0,0.3787666]